bitfinex/quotes_BTCUSD_20241011
["timestamp","ask_amount","ask_price","bid_price","bid_amount"]
[1728638170340,1e-06,60997.0,60996.0,0.163945]
[1728638170579,1e-06,60997.0,60979.0,0.04833569]
[1728638170580,0.167,60996.0,60979.0,0.04833569]
[1728638170797,0.167,60996.0,60977.0,0.327991]
[1728638170798,0.3363093,60996.0,60987.0,0.24774756]
[1728638171018,0.3363093,60996.0,60977.0,0.327991]
[1728638171019,0.163966,60989.0,60988.0,0.24774756]
[1728638171258,0.3332753,60989.0,60988.0,0.24774756]
[1728638171484,0.163969,60987.0,60984.0,0.163975]
[1728638171706,0.163969,60987.0,60984.0,0.327953]
[1728638171707,0.1693093,60987.0,60984.0,0.327953]
[1728638171947,0.06611973,60986.0,60983.0,0.13046312]
[1728638172403,0.06611973,60986.0,60985.0,0.163974]
[1728638173515,0.06611973,60986.0,60984.0,0.163977]
[1728638173741,0.0235429,60985.0,60984.0,0.163977]
[1728638173967,0.163948,60995.0,60984.0,0.45841612]
[1728638174237,0.0122,60999.0,60983.0,0.13046312]
[1728638174238,0.0122,60999.0,60996.0,0.163945]
[1728638174698,0.0122,60999.0,60998.0,0.163939]
[1728638174919,0.0122,60999.0,60998.0,0.29440212]
[1728638176409,0.0122,60999.0,60998.0,0.35916413]
[1728638176834,0.0122,60999.0,60998.0,0.163939]
[1728638177056,0.02746,60999.0,60998.0,0.163939]
[1728638177925,0.0122,60999.0,60998.0,0.163939]
[1728638178555,0.0122,60999.0,60998.0,0.164939]
[1728638178772,0.0122,60999.0,60998.0,0.163939]
[1728638179009,0.0122,60999.0,60997.0,0.16394]
[1728638179230,0.0122,60999.0,60998.0,0.001]
[1728638179450,0.0766389,60999.0,60998.0,0.001]
[1728638179680,0.0122,60999.0,60998.0,0.001]
[1728638179895,0.3454463,60999.0,60998.0,0.001]
[1728638180118,0.4424463,60999.0,60998.0,0.001]
[1728638180361,0.5285463,60999.0,60998.0,0.001]
[1728638181063,0.5285463,60999.0,60983.0,0.327955]
[1728638181064,0.163953,60993.0,60988.0,0.327932]
[1728638181287,0.1693093,60992.0,60991.0,0.163958]
[1728638181505,0.1693093,60992.0,60989.0,0.163961]
[1728638181770,0.1693093,60992.0,60988.0,0.163965]
[1728638181978,0.3332653,60992.0,60988.0,0.163965]
[1728638182194,0.1693093,60992.0,60988.0,0.002]
[1728638182423,0.05022103,60991.0,60988.0,0.002]
[1728638182651,0.05022103,60991.0,60982.0,0.19522513]
[1728638182652,0.3332703,60990.0,60989.0,0.002]
[1728638183094,0.3332703,60990.0,60988.0,0.002]
[1728638183095,0.163963,60989.0,60988.0,0.002]
[1728638183318,0.3332723,60989.0,60988.0,0.005]
[1728638183988,0.1693093,60989.0,60988.0,0.005]
[1728638184213,0.3332723,60989.0,60988.0,0.003]
[1728638184629,0.1693093,60989.0,60988.0,0.163966]
[1728638184840,0.1693093,60989.0,60988.0,0.003]
[1728638185057,0.1693093,60989.0,60988.0,0.005]
[1728638185725,0.1693093,60989.0,60988.0,0.168966]
[1728638186183,0.23592643,60989.0,60988.0,0.168966]
[1728638186414,0.1693093,60989.0,60988.0,0.168966]
[1728638188797,0.3332723,60989.0,60988.0,0.005]
[1728638189269,0.4140723,60989.0,60988.0,0.005]
[1728638189532,0.5158723,60989.0,60988.0,0.005]
[1728638189997,0.68883383,60989.0,60988.0,0.005]
[1728638190222,1.14416983,60989.0,60988.0,0.005]
[1728638190465,1.02044283,60989.0,60988.0,0.005]
[1728638190992,1.01844283,60989.0,60988.0,0.005]
[1728638191242,0.91944783,60989.0,60988.0,0.003]
[1728638191489,0.163985,60981.0,60980.0,0.24774756]
[1728638191726,0.3332943,60981.0,60980.0,0.24774756]
[1728638191975,0.32799,60978.0,60973.0,0.24774756]
[1728638192212,0.164004,60974.0,60973.0,0.24774756]
[1728638192450,0.3333143,60974.0,60970.0,0.164014]
[1728638192708,0.164021,60968.0,60964.0,0.16403]
[1728638192950,0.1693093,60967.0,60964.0,0.16403]
[1728638193447,0.1693093,60967.0,60965.0,0.164027]
[1728638193918,0.1693093,60967.0,60963.0,0.164031]
[1728638194153,0.3333333,60967.0,60963.0,0.164031]
[1728638194389,0.1693093,60967.0,60964.0,0.16403]
[1728638194626,0.3333333,60967.0,60962.0,0.41178156]
[1728638194860,0.06613653,60966.0,60962.0,0.24774756]
[1728638195116,0.06613653,60966.0,60961.0,0.52330213]
[1728638195117,0.1693093,60965.0,60961.0,0.19522513]
[1728638195352,0.1693093,60965.0,60960.0,0.328079]
[1728638195590,0.1693093,60965.0,60964.0,0.164031]
[1728638196333,0.1693093,60965.0,60962.0,0.44297269]
[1728638196334,0.0794,60972.0,60962.0,0.19522513]
[1728638196578,0.1693093,60971.0,60969.0,0.164016]
[1728638196853,0.1693093,60971.0,60966.0,0.52327613]
[1728638197094,0.1693093,60971.0,60969.0,0.164017]
[1728638197532,0.1693093,60971.0,60967.0,0.328044]
[1728638197755,0.0929961,60977.0,60967.0,0.328044]
[1728638197756,0.0009961,60977.0,60975.0,0.164]
[1728638197973,0.1693093,60976.0,60975.0,0.35922513]
[1728638198181,0.1693093,60976.0,60975.0,0.19522513]
[1728638198386,0.1693093,60976.0,60974.0,0.164004]
[1728638198387,0.1693093,60976.0,60974.0,0.29426322]
[1728638198595,0.1693093,60976.0,60975.0,0.164001]
[1728638200062,0.1693093,60976.0,60974.0,0.13026122]
[1728638200300,0.1693093,60976.0,60975.0,0.001]
[1728638201203,0.1693093,60976.0,60975.0,0.165001]
[1728638201414,0.1693093,60976.0,60975.0,0.166001]
[1728638201635,0.1693093,60976.0,60975.0,0.002]
[1728638202494,0.3333073,60976.0,60975.0,0.002]
[1728638203623,0.1693093,60976.0,60975.0,0.002]
[1728638203884,0.1693093,60976.0,60975.0,0.166001]
[1728638204642,0.1693093,60976.0,60975.0,0.164001]
[1728638204896,0.1693093,60976.0,60975.0,0.166001]
[1728638205560,0.1693093,60976.0,60975.0,0.002]
[1728638205782,0.1693093,60976.0,60975.0,0.001]
[1728638206023,0.1693093,60976.0,60975.0,0.165001]
[1728638206305,0.1693093,60976.0,60975.0,0.164001]
[1728638207199,0.1693093,60976.0,60975.0,0.165001]
[1728638207619,0.1693093,60976.0,60975.0,0.001]
[1728638207826,0.1693093,60976.0,60975.0,0.165001]
[1728638208274,0.1693093,60976.0,60975.0,0.166001]
[1728638210961,0.1693093,60976.0,60975.0,0.167631]
[1728638211489,0.24974756,60994.0,60975.0,0.167631]
[1728638211490,0.1649665,60988.0,60984.0,0.163976]
[1728638211712,0.1649665,60988.0,60978.0,0.327983]
[1728638211713,0.327944,60986.0,60978.0,0.327983]
[1728638211925,0.327944,60986.0,60978.0,0.163992]
[1728638211926,0.163984,60982.0,60978.0,0.163992]
[1728638212155,0.1693093,60981.0,60978.0,0.163992]
[1728638212397,0.3332953,60981.0,60977.0,0.41174156]
[1728638212671,0.3332953,60981.0,60977.0,0.163994]
[1728638213110,0.3332953,60981.0,60978.0,0.163992]
[1728638213111,0.1693093,60981.0,60978.0,0.163992]
[1728638213318,0.06612533,60980.0,60978.0,0.163992]
[1728638213526,0.23543463,60980.0,60978.0,0.163992]
[1728638213726,0.23543463,60980.0,60977.0,0.163996]
[1728638213937,0.1693093,60980.0,60978.0,0.163992]
[1728638214580,0.1693093,60980.0,60977.0,0.327991]
[1728638214793,0.1693093,60980.0,60975.0,0.329631]
[1728638215012,0.1693093,60980.0,60978.0,0.163991]
[1728638215256,0.1693093,60980.0,60978.0,0.163992]
[1728638215499,0.163998,60976.0,60975.0,0.00163]
[1728638215706,0.3333073,60976.0,60975.0,0.00163]
[1728638216330,0.5191073,60976.0,60975.0,0.00163]
[1728638217700,0.5191073,60976.0,60975.0,0.00263]
[1728638217923,0.5191073,60976.0,60975.0,0.00163]
[1728638218135,0.5191073,60976.0,60975.0,0.00263]
[1728638218558,0.5191073,60976.0,60975.0,0.00163]
[1728638218780,0.5231073,60976.0,60975.0,0.00363]
[1728638219230,0.5191073,60976.0,60975.0,0.00263]
[1728638219439,0.5231073,60976.0,60975.0,0.00363]
[1728638220067,0.5231073,60976.0,60975.0,0.00263]
[1728638220310,0.5211073,60976.0,60975.0,0.00263]
[1728638220524,0.5191073,60976.0,60975.0,0.00163]
[1728638220951,0.5211073,60976.0,60975.0,0.00263]
[1728638221590,0.5251073,60976.0,60975.0,0.00363]
[1728638222024,0.4253073,60976.0,60975.0,0.00363]
[1728638222956,0.4213073,60976.0,60975.0,0.00263]
[1728638223193,0.4233073,60976.0,60975.0,0.00263]
[1728638223427,0.4253073,60976.0,60975.0,0.00363]
[1728638223911,0.56943303,60976.0,60975.0,0.00363]
[1728638224647,0.59243303,60976.0,60975.0,0.00363]
[1728638225628,0.4483073,60976.0,60975.0,0.00363]
[1728638226331,0.4503073,60976.0,60975.0,0.00363]
[1728638227059,0.4483073,60976.0,60975.0,0.00363]
[1728638228315,0.4483073,60976.0,60968.0,0.29428022]
[1728638228316,0.16401,60972.0,60968.0,0.29428022]
[1728638228563,0.3333213,60971.0,60970.0,0.24774756]
[1728638228788,0.3333213,60971.0,60968.0,0.29428022]
[1728638229030,0.38282178,60971.0,60968.0,0.29428022]
[1728638229748,0.38282178,60971.0,60968.0,0.29528022]
[1728638229991,0.1693093,60971.0,60969.0,0.164017]
[1728638230233,0.1693093,60971.0,60970.0,0.164015]
[1728638230930,0.1723093,60971.0,60970.0,0.164015]
[1728638231150,0.1693093,60971.0,60970.0,0.164015]
[1728638231387,0.1773093,60971.0,60970.0,0.165015]
[1728638232406,0.1723093,60971.0,60970.0,0.165015]
[1728638232653,0.008,60971.0,60970.0,0.166015]
[1728638232908,0.005,60971.0,60970.0,0.165015]
[1728638233144,0.008,60971.0,60970.0,0.165015]
[1728638233824,0.008,60971.0,60970.0,0.166649]
[1728638234043,0.003,60971.0,60970.0,0.165649]
[1728638234254,0.008,60971.0,60970.0,0.165649]
[1728638234728,0.003,60971.0,60970.0,0.165649]
[1728638234955,0.005,60971.0,60970.0,0.165649]
[1728638236323,0.002,60971.0,60970.0,0.165649]
[1728638236784,0.003,60971.0,60970.0,0.165649]
[1728638238625,0.003,60971.0,60970.0,0.21441459]
[1728638242935,0.003,60971.0,60970.0,0.2144455]
[1728638246112,0.003817,60971.0,60970.0,0.2144455]
[1728638246557,0.167829,60971.0,60970.0,0.0504305]
[1728638246766,0.2250517,60971.0,60970.0,0.001634]
[1728638246966,0.167829,60971.0,60970.0,0.001634]
[1728638247719,0.328012,60974.0,60970.0,0.001634]
[1728638247922,0.164012,60971.0,60970.0,0.001634]
[1728638249374,0.3333183,60973.0,60970.0,0.001634]
[1728638249587,0.1693093,60973.0,60970.0,0.001634]
[1728638249728,0.16401,60972.0,60970.0,0.001634]
[1728638249954,0.3333193,60972.0,60970.0,0.001634]
[1728638250161,0.001,60971.0,60970.0,0.001634]
[1728638250360,0.3333193,60972.0,60970.0,0.001634]
[1728638251481,0.3343193,60972.0,60970.0,0.001634]
[1728638252605,0.1703093,60972.0,60970.0,0.165648]
[1728638252825,0.1703093,60972.0,60971.0,0.29427322]
[1728638253806,0.1693093,60972.0,60971.0,0.13026122]
[1728638254053,0.1713093,60972.0,60971.0,0.13026122]
[1728638254766,0.1733093,60972.0,60971.0,0.29427322]
[1728638256678,0.004,60972.0,60971.0,0.29427322]
[1728638258154,0.004817,60972.0,60971.0,0.29427322]
[1728638260141,0.004817,60972.0,60971.0,0.34307959]
[1728638260605,0.004817,60972.0,60971.0,0.29427322]
[1728638262574,0.004817,60972.0,60971.0,0.57207418]
[1728638262878,0.004817,60972.0,60971.0,0.57208237]
[1728638263084,0.004817,60972.0,60971.0,0.59647737]
[1728638263337,0.004817,60972.0,60971.0,0.47446143]
[1728638263837,0.004817,60972.0,60971.0,0.57207146]
[1728638264583,0.004817,60972.0,60971.0,0.47446143]
[1728638265071,0.004817,60972.0,60971.0,0.59647737]
[1728638265311,0.004817,60972.0,60971.0,0.47446143]
[1728638265743,0.004817,60972.0,60971.0,0.59647737]
[1728638265983,0.004817,60972.0,60971.0,0.47446143]
[1728638266496,0.004817,60972.0,60971.0,0.47443108]
[1728638268337,0.004817,60972.0,60971.0,0.54764174]
[1728638268567,0.004817,60972.0,60971.0,0.36748388]
[1728638268823,0.004817,60972.0,60971.0,0.29427322]
[1728638271323,0.004817,60972.0,60971.0,0.21282633]
[1728638272309,0.004817,60972.0,60971.0,0.164012]
[1728638273314,0.004817,60972.0,60971.0,0.54776791]
[1728638275320,0.004817,60972.0,60971.0,0.47455725]
[1728638275992,0.004817,60972.0,60971.0,0.47460499]
[1728638278278,0.004817,60972.0,60971.0,0.57230855]
[1728638278491,0.004817,60972.0,60971.0,0.52753422]
[1728638279834,0.004817,60972.0,60971.0,0.52754646]
[1728638280522,0.004817,60972.0,60971.0,0.42983066]
[1728638280791,0.004817,60972.0,60971.0,0.42986707]
[1728638280996,0.004817,60972.0,60971.0,0.52759036]
[1728638281688,0.004817,60972.0,60971.0,0.52922436]
[1728638282369,0.004817,60972.0,60971.0,0.43150107]
[1728638282833,0.004817,60972.0,60971.0,0.52921574]
[1728638283082,0.004817,60972.0,60971.0,0.43150107]
[1728638283375,0.004817,60972.0,60971.0,0.52921604]
[1728638283843,0.004817,60972.0,60971.0,0.27971715]
[1728638284070,0.004817,60972.0,60971.0,0.25529422]
[1728638284071,0.168826,60972.0,60971.0,0.25529422]
[1728638284298,0.168826,60972.0,60971.0,0.0749252]
[1728638284511,0.004817,60972.0,60971.0,0.18200585]
[1728638284731,0.1741263,60972.0,60971.0,0.07492681]
[1728638284954,0.1741263,60972.0,60971.0,0.05049841]
[1728638285664,0.3381353,60972.0,60971.0,0.05049841]
[1728638286801,0.004817,60972.0,60971.0,0.23893881]
[1728638287018,0.004817,60972.0,60971.0,0.44372586]
[1728638287237,0.004817,60972.0,60971.0,0.34601089]
[1728638287481,0.004817,60972.0,60971.0,0.468165]
[1728638287736,0.004817,60972.0,60971.0,0.44372366]
[1728638287957,0.004817,60972.0,60971.0,0.468165]
[1728638288664,0.004817,60972.0,60971.0,0.165646]
[1728638288881,0.004817,60972.0,60971.0,0.46810615]
[1728638292760,0.004817,60972.0,60971.0,0.34597713]
[1728638292988,0.004817,60972.0,60971.0,0.46810076]
[1728638295830,0.004817,60972.0,60971.0,0.34597713]
[1728638296566,0.004817,60972.0,60971.0,0.18196513]
[1728638296804,0.004817,60972.0,60971.0,0.34597713]
[1728638297019,0.004817,60972.0,60971.0,0.46810076]
[1728638303316,0.3381353,60972.0,60971.0,0.30408876]
[1728638303556,0.61814923,60972.0,60971.0,0.001634]
[1728638305213,0.72290923,60972.0,60971.0,0.001634]
[1728638305443,0.72990923,60972.0,60971.0,0.003634]
[1728638305657,0.72590923,60972.0,60971.0,0.002634]
[1728638305881,0.72290923,60972.0,60971.0,0.002634]
[1728638306112,0.72990923,60972.0,60971.0,0.003634]
[1728638306327,0.72590923,60972.0,60971.0,0.002634]
[1728638306562,0.72990923,60972.0,60971.0,0.003634]
[1728638307508,0.72690923,60972.0,60971.0,0.002634]
[1728638307766,0.83263612,60972.0,60971.0,0.003634]
[1728638308027,1.81331712,60972.0,60971.0,0.003634]
[1728638309983,1.81531712,60972.0,60971.0,0.003634]
[1728638310485,0.636615,60970.0,60969.0,1e-06]
[1728638310737,0.842228,60965.0,60964.0,0.24774756]
[1728638310994,4.09636808,60965.0,60964.0,0.24774756]
[1728638311248,0.005,60960.0,60959.0,0.00163]
[1728638311498,1.84899278,60960.0,60959.0,0.00163]
[1728638311722,2.21866278,60960.0,60959.0,0.00163]
[1728638312204,2.39186278,60960.0,60929.0,0.001632]
[1728638312441,1.02398989,60937.0,60933.0,0.24774756]
[1728638312666,0.938503,60937.0,60933.0,0.24774756]
[1728638312916,1.08504,60937.0,60933.0,0.24774756]
[1728638313146,0.938503,60937.0,60933.0,0.24774756]
[1728638313371,1.08534,60937.0,60933.0,0.24774756]
[1728638313595,1.36404726,60937.0,60929.0,0.001632]
[1728638313819,0.3384123,60937.0,60930.0,0.2946516]
[1728638314278,0.3384123,60937.0,60929.0,0.001632]
[1728638314494,0.3384123,60937.0,60929.0,0.165756]
[1728638314721,0.3524123,60937.0,60936.0,0.00263]
[1728638314947,0.3474123,60937.0,60936.0,0.00263]
[1728638315185,0.3384123,60937.0,60936.0,0.00163]
[1728638315411,0.44052233,60937.0,60936.0,0.00163]
[1728638315687,0.44552233,60937.0,60936.0,0.00163]
[1728638315907,0.1973093,60937.0,60936.0,0.00363]
[1728638316375,0.3614123,60937.0,60936.0,0.00363]
[1728638318065,0.3664123,60937.0,60936.0,0.00363]
[1728638318523,0.4839323,60937.0,60936.0,0.00363]
[1728638318757,0.732675,60937.0,60936.0,0.00363]
[1728638320650,1.355675,60937.0,60936.0,0.00363]
[1728638320885,1.450375,60937.0,60936.0,0.00363]
[1728638321112,1.5809056,60937.0,60936.0,0.00363]
[1728638321806,1.5669056,60937.0,60936.0,0.00263]
[1728638322061,1.5529056,60937.0,60936.0,0.00163]
[1728638322296,1.5529056,60937.0,60936.0,0.00263]
[1728638322297,1.5669056,60937.0,60936.0,0.00263]
[1728638322545,1.5809056,60937.0,60936.0,0.00263]
[1728638322785,1.5669056,60937.0,60936.0,0.00263]
[1728638323020,1.5529056,60937.0,60936.0,0.00163]
[1728638323247,1.57858845,60937.0,60936.0,0.00163]
[1728638323499,1.57858845,60937.0,60936.0,0.00263]
[1728638323500,1.59258845,60937.0,60936.0,0.00263]
[1728638324179,1.60658845,60937.0,60936.0,0.00263]
[1728638327220,4.29835045,60937.0,60936.0,0.00263]
[1728638328080,4.18538245,60937.0,60936.0,0.00263]
[1728638330049,4.48911305,60937.0,60936.0,0.00263]
[1728638330268,1.2296832,60930.0,60929.0,0.001632]
[1728638330499,3.8464235,60930.0,60929.0,0.001632]
[1728638330709,4.1968505,60930.0,60929.0,0.001632]
[1728638331346,4.1802175,60930.0,60929.0,0.001632]
[1728638331567,4.1942175,60930.0,60929.0,0.001632]
[1728638331842,4.2471296,60930.0,60929.0,0.001632]
[1728638332061,1.4579813,60930.0,60929.0,0.001632]
[1728638332281,1.0438313,60930.0,60929.0,0.001632]
[1728638332534,1.3344563,60930.0,60929.0,0.001632]
[1728638333602,1.3418033,60930.0,60929.0,0.001632]
[1728638333810,1.511246,60930.0,60929.0,0.001632]
[1728638334982,1.513246,60930.0,60929.0,0.001632]
[1728638336039,1.511246,60930.0,60929.0,0.001632]
[1728638336281,1.513246,60930.0,60929.0,0.001632]
[1728638336488,1.511246,60930.0,60929.0,0.001632]
[1728638336942,1.513246,60930.0,60929.0,0.001632]
[1728638337160,1.511246,60930.0,60929.0,0.001632]
[1728638340867,0.4664313,60930.0,60929.0,0.001632]
[1728638341607,0.4524313,60930.0,60929.0,0.001632]
[1728638342068,0.4724313,60930.0,60929.0,0.001632]
[1728638342530,0.4864313,60930.0,60929.0,0.001632]
[1728638342749,0.4724313,60930.0,60929.0,0.001632]
[1728638342963,0.4864313,60930.0,60929.0,0.001632]
[1728638343428,0.4724313,60930.0,60929.0,0.001632]
[1728638343648,0.4814313,60930.0,60929.0,0.001632]
[1728638343875,0.4864313,60930.0,60929.0,0.001632]
[1728638344377,0.550874,60930.0,60929.0,0.001632]
[1728638344624,0.3814313,60930.0,60929.0,0.001632]
[1728638351902,0.5192653,60930.0,60929.0,0.001632]
[1728638352363,0.5212653,60930.0,60929.0,0.001632]
[1728638352831,0.6212653,60930.0,60929.0,0.001632]
[1728638353051,0.907008,60930.0,60929.0,0.001632]
[1728638353570,0.989008,60930.0,60929.0,0.001632]
[1728638353950,0.975008,60930.0,60929.0,0.001632]
[1728638354915,0.989008,60930.0,60929.0,0.001632]
[1728638355123,0.961008,60930.0,60929.0,0.001632]
[1728638355403,0.975008,60930.0,60929.0,0.001632]
[1728638356067,0.961008,60930.0,60929.0,0.001632]
[1728638356355,0.975008,60930.0,60929.0,0.001632]
[1728638356561,0.989008,60930.0,60929.0,0.001632]
[1728638356832,0.989008,60930.0,60927.0,0.001632]
[1728638356833,0.694128,60928.0,60927.0,0.001632]
[1728638357025,5.062638,60928.0,60927.0,0.001632]
[1728638357255,5.012219,60928.0,60927.0,0.001632]
[1728638357516,4.391893,60928.0,60927.0,0.001632]
[1728638358207,4.405893,60928.0,60927.0,0.001632]
[1728638358451,4.405893,60928.0,60922.0,0.00207]
[1728638358452,0.19407589,60923.0,60922.0,0.00207]
[1728638358697,4.75463279,60923.0,60922.0,0.00207]
[1728638358940,4.40352679,60923.0,60922.0,0.00207]
[1728638359171,4.38183079,60923.0,60922.0,0.00207]
[1728638359655,4.39583079,60923.0,60922.0,0.00207]
[1728638359868,4.39583079,60923.0,60919.0,1e-06]
[1728638359869,0.92038389,60920.0,60919.0,1e-06]
[1728638360084,5.12794179,60920.0,60919.0,1e-06]
[1728638360310,4.58591479,60920.0,60919.0,1e-06]
[1728638361319,4.59991479,60920.0,60919.0,1e-06]
[1728638361777,4.70751479,60920.0,60919.0,1e-06]
[1728638362003,4.70751479,60920.0,60914.0,1e-06]
[1728638362004,0.00693489,60915.0,60914.0,1e-06]
[1728638362248,0.71806839,60915.0,60914.0,1e-06]
[1728638362469,4.93973379,60915.0,60914.0,1e-06]
[1728638362984,5.11273379,60915.0,60914.0,1e-06]
[1728638363152,5.41270709,60915.0,60914.0,1e-06]
[1728638363384,5.29617649,60915.0,60914.0,1e-06]
[1728638363876,5.49450709,60915.0,60914.0,1e-06]
[1728638364089,5.50850709,60915.0,60914.0,1e-06]
[1728638364314,5.52250709,60915.0,60914.0,1e-06]
[1728638364540,5.50850709,60915.0,60914.0,1e-06]
[1728638364986,5.27784309,60915.0,60914.0,1e-06]
[1728638365664,4.67449589,60915.0,60914.0,1e-06]
[1728638365883,1.5859786,60915.0,60914.0,1e-06]
[1728638366103,1.50640149,60915.0,60914.0,1e-06]
[1728638366802,1.5044666,60915.0,60914.0,1e-06]
[1728638367022,1.51240149,60915.0,60914.0,1e-06]
[1728638367252,1.5104666,60915.0,60914.0,1e-06]
[1728638367479,1.5254666,60915.0,60914.0,1e-06]
[1728638367724,1.5244666,60915.0,60914.0,1e-06]
[1728638368399,1.4308666,60915.0,60914.0,1e-06]
[1728638369391,1.43280149,60915.0,60914.0,1e-06]
[1728638369876,1.4308666,60915.0,60914.0,1e-06]
[1728638370121,1.43280149,60915.0,60914.0,1e-06]
[1728638370663,1.4308666,60915.0,60914.0,1e-06]
[1728638371781,1.82253349,60915.0,60914.0,1e-06]
[1728638372702,1.8435986,60915.0,60914.0,1e-06]
[1728638372929,2.00453349,60915.0,60914.0,1e-06]
[1728638373189,2.01853349,60915.0,60914.0,1e-06]
[1728638373637,1.99053349,60915.0,60914.0,1e-06]
[1728638373876,2.0025986,60915.0,60914.0,1e-06]
[1728638374116,0.945364,60915.0,60914.0,1e-06]
[1728638374338,0.931364,60915.0,60914.0,1e-06]
[1728638374572,0.6941213,60915.0,60914.0,1e-06]
[1728638374812,0.4864723,60915.0,60914.0,1e-06]
[1728638375038,0.4584723,60915.0,60914.0,1e-06]
[1728638375266,0.4724723,60915.0,60914.0,1e-06]
[1728638375487,0.4584723,60915.0,60914.0,1e-06]
[1728638375745,0.641915,60915.0,60914.0,1e-06]
[1728638376411,0.4584723,60915.0,60914.0,1e-06]
[1728638376636,0.3674723,60915.0,60914.0,1e-06]
[1728638377104,0.3864723,60915.0,60914.0,1e-06]
[1728638377326,0.3814723,60915.0,60914.0,1e-06]
[1728638377785,0.4724723,60915.0,60914.0,1e-06]
[1728638378014,0.4814723,60915.0,60914.0,1e-06]
[1728638378286,0.3674723,60915.0,60914.0,1e-06]
[1728638378957,0.3814723,60915.0,60914.0,1e-06]
[1728638379495,0.3674723,60915.0,60914.0,1e-06]
[1728638379679,0.3814723,60915.0,60914.0,1e-06]
[1728638381304,0.2173093,60915.0,60914.0,0.080701]
[1728638381547,0.3814723,60915.0,60914.0,0.080701]
[1728638382254,0.2173093,60915.0,60914.0,0.080701]
[1728638382483,0.3814723,60915.0,60914.0,0.080701]
[1728638382966,0.2173093,60915.0,60914.0,0.080701]
[1728638383222,0.048,60915.0,60914.0,0.4681966]
[1728638384383,0.034,60915.0,60914.0,0.4681966]
[1728638384608,0.02,60915.0,60914.0,0.4681966]
[1728638385055,0.034,60915.0,60914.0,0.4681966]
[1728638385276,0.048,60915.0,60914.0,0.4681966]
[1728638385499,0.035634,60915.0,60914.0,0.4681966]
[1728638385732,0.038634,60915.0,60914.0,0.4681966]
[1728638386939,0.024634,60915.0,60914.0,0.4681966]
[1728638387164,0.024634,60915.0,60914.0,0.4701966]
[1728638387165,0.027634,60915.0,60914.0,0.4701966]
[1728638387403,0.024634,60915.0,60914.0,0.4691966]
[1728638387862,0.021634,60915.0,60914.0,0.4721966]
[1728638388108,0.022634,60915.0,60914.0,0.4721966]
[1728638388604,0.022634,60915.0,60914.0,0.4711966]
[1728638388605,0.021634,60915.0,60914.0,0.4711966]
[1728638388856,0.021634,60915.0,60914.0,0.4721966]
[1728638389092,0.021634,60915.0,60914.0,0.4741966]
[1728638389351,0.021634,60915.0,60914.0,0.4731966]
[1728638390237,0.021634,60915.0,60914.0,0.4721966]
[1728638390458,0.021634,60915.0,60914.0,0.341666]
[1728638391311,0.021634,60915.0,60914.0,0.340666]
[1728638391730,0.022634,60915.0,60914.0,0.337666]
[1728638391974,0.023634,60915.0,60914.0,0.337666]
[1728638394483,0.023634,60915.0,60914.0,0.4681966]
[1728638394712,0.023634,60915.0,60914.0,0.173501]
[1728638394942,0.023634,60915.0,60914.0,0.337666]
[1728638401328,0.023634,60915.0,60914.0,0.080701]
[1728638401800,0.023634,60915.0,60914.0,1e-06]
[1728638401801,0.44990596,60915.0,60914.0,1e-06]
[1728638404460,0.3571063,60915.0,60914.0,1e-06]
[1728638404698,0.1929433,60915.0,60914.0,1e-06]
[1728638404915,0.3571063,60915.0,60914.0,1e-06]
[1728638409245,0.1929433,60915.0,60914.0,1e-06]
[1728638409470,0.3571063,60915.0,60914.0,1e-06]
[1728638409685,0.48325359,60915.0,60914.0,1e-06]
[1728638410327,0.3571063,60915.0,60914.0,1e-06]
[1728638412543,0.1929433,60915.0,60914.0,1e-06]
[1728638413430,0.3571063,60915.0,60914.0,1e-06]
[1728638414975,0.5316063,60915.0,60914.0,1e-06]
[1728638415198,1.0319119,60915.0,60914.0,1e-06]
[1728638415423,1.2013546,60915.0,60914.0,1e-06]
[1728638416102,0.9315796,60915.0,60914.0,1e-06]
[1728638416346,1.339558,60915.0,60914.0,1e-06]
[1728638416629,1.4840886,60915.0,60914.0,1e-06]
[1728638416852,1.4546726,60915.0,60914.0,1e-06]
[1728638417292,1.4686726,60915.0,60914.0,1e-06]
[1728638417516,1.4007516,60915.0,60914.0,1e-06]
[1728638417733,0.6476063,60915.0,60914.0,1e-06]
[1728638419278,0.3731063,60915.0,60914.0,1e-06]
[1728638420222,0.3451063,60915.0,60914.0,1e-06]
[1728638420461,0.3731063,60915.0,60914.0,1e-06]
[1728638420680,0.3591063,60915.0,60914.0,1e-06]
[1728638421120,0.3731063,60915.0,60914.0,1e-06]
[1728638422525,0.2089433,60915.0,60914.0,1e-06]
[1728638422742,0.3731063,60915.0,60914.0,1e-06]
[1728638424094,0.2089433,60915.0,60914.0,1e-06]
[1728638425071,0.3731063,60915.0,60914.0,1e-06]
[1728638433828,0.4558063,60915.0,60914.0,1e-06]
[1728638434080,0.5477063,60915.0,60914.0,1e-06]
[1728638438923,0.8648269,60915.0,60914.0,1e-06]
[1728638439416,0.8254259,60915.0,60914.0,1e-06]
[1728638440019,0.6832369,60915.0,60914.0,1e-06]
[1728638440248,0.950438,60915.0,60914.0,1e-06]
[1728638440467,0.936438,60915.0,60914.0,1e-06]
[1728638440976,0.950438,60915.0,60914.0,1e-06]
[1728638441215,0.936438,60915.0,60914.0,1e-06]
[1728638441673,0.950438,60915.0,60914.0,1e-06]
[1728638443457,1.2039686,60915.0,60914.0,1e-06]
[1728638448207,2.1433466,60915.0,60914.0,1e-06]
[1728638452148,1.9784386,60915.0,60914.0,1e-06]
[1728638452613,1.93362559,60915.0,60914.0,1e-06]
[1728638453051,1.847908,60915.0,60914.0,1e-06]
[1728638453289,1.15750259,60915.0,60914.0,1e-06]
[1728638455833,0.98805989,60915.0,60914.0,1e-06]
[1728638456087,0.96505989,60915.0,60914.0,1e-06]
[1728638457390,0.89629089,60915.0,60914.0,1e-06]
[1728638459143,1.16075289,60915.0,60914.0,1e-06]
[1728638460029,0.93916889,60915.0,60914.0,1e-06]
[1728638460272,0.92075289,60915.0,60914.0,1e-06]
[1728638466355,0.84870889,60915.0,60914.0,1e-06]